[Event "Titled Tuesday Blitz October 18 Late 2022"]
[White "Kovacevic, Radmila"]
[Black "Ozer, Omer Faruk"]
[WhiteFideId "933171"]
[BlackFideId "6354564"]
[WhiteElo "2208"]
[BlackElo "2260"]
[Result "0-1"]
[Round "01"]
[TimeControl "180+1"]
[Date "2022.10.19"]
[WhiteClock "0:00:04"]
[BlackClock "0:00:12"]

1. e4 {[%clk 0:02:53]}  c6 {[%clk 0:02:58]} 2. d4 {[%clk 0:02:53]}  d5 {[%clk 0:02:47]} 3. e5 {[%clk 0:02:53]}  Bf5 {[%clk 0:02:45]} 4. Be3 {[%clk 0:02:54]}  e6 {[%clk 0:02:45]} 5. c3 {[%clk 0:02:54]}  Ne7 {[%clk 0:02:45]} 6. Nd2 {[%clk 0:02:53]}  Nd7 {[%clk 0:02:44]} 7. b4 {[%clk 0:02:53]}  Bg6 {[%clk 0:02:39]} 8. g4 {[%clk 0:02:53]}  h5 {[%clk 0:02:37]} 9. f3 {[%clk 0:02:53]}  f6 {[%clk 0:02:32]} 10. exf6 {[%clk 0:02:49]}  gxf6 {[%clk 0:02:31]} 11. Nh3 {[%clk 0:02:48]}  hxg4 {[%clk 0:02:28]} 12. fxg4 {[%clk 0:02:49]}  e5 {[%clk 0:02:28]} 13. Bg2 {[%clk 0:02:45]}  Bg7 {[%clk 0:02:12]} 14. O-O {[%clk 0:02:41]}  Qc7 {[%clk 0:02:09]} 15. Nf3 {[%clk 0:02:24]}  O-O-O {[%clk 0:02:06]} 16. Qa4 {[%clk 0:02:20]}  Kb8 {[%clk 0:02:04]} 17. Rf2 {[%clk 0:02:11]}  Nb6 {[%clk 0:02:03]} 18. Qb3 {[%clk 0:02:06]}  Nc4 {[%clk 0:02:02]} 19. Bc1 {[%clk 0:02:06]}  Ka8 {[%clk 0:01:50]} 20. a4 {[%clk 0:02:06]}  e4 {[%clk 0:01:46]} 21. Ne1 {[%clk 0:01:57]}  f5 {[%clk 0:01:38]} 22. g5 {[%clk 0:01:54]}  Rxh3 {[%clk 0:01:37]} 23. Bxh3 {[%clk 0:01:53]}  e3 {[%clk 0:01:38]} 24. Rg2 {[%clk 0:01:50]}  f4 {[%clk 0:01:37]} 25. Bg4 {[%clk 0:01:46]}  Rh8 {[%clk 0:01:20]} 26. Bf3 {[%clk 0:01:45]}  Nf5 {[%clk 0:01:17]} 27. Raa2 {[%clk 0:01:25]}  Nh4 {[%clk 0:01:15]} 28. b5 {[%clk 0:01:14]}  Nxg2 {[%clk 0:01:12]} 29. Rxg2 {[%clk 0:01:14]}  Nd6 {[%clk 0:00:55]} 30. Ba3 {[%clk 0:01:07]}  Ne4 {[%clk 0:00:52]} 31. Bc1 {[%clk 0:01:00]}  c5 {[%clk 0:00:50]} 32. Qxd5 {[%clk 0:00:59]}  Nxc3 {[%clk 0:00:48]} 33. Qxc5 {[%clk 0:00:58]}  Rc8 {[%clk 0:00:40]} 34. Ba3 {[%clk 0:00:49]}  Ne4 {[%clk 0:00:29]} 35. Qb4 {[%clk 0:00:40]}  Nd2 {[%clk 0:00:25]} 36. d5 {[%clk 0:00:37]}  Qc3 {[%clk 0:00:20]} 37. d6 {[%clk 0:00:31]}  Qxb4 {[%clk 0:00:19]} 38. Bxb4 {[%clk 0:00:32]}  Nxf3+ {[%clk 0:00:18]} 39. Nxf3 {[%clk 0:00:30]}  Rc1+ {[%clk 0:00:18]} 40. Ne1 {[%clk 0:00:27]}  Rd1 {[%clk 0:00:16]} 41. Rg4 {[%clk 0:00:19]}  f3 {[%clk 0:00:14]} 42. Rc4 {[%clk 0:00:10]}  Bf5 {[%clk 0:00:11]} 43. Kf1 {[%clk 0:00:07]}  Bh3+ {[%clk 0:00:11]} 44. Kg1 {[%clk 0:00:07]}  f2+ {[%clk 0:00:12]} 45. Kh1 {[%clk 0:00:06]}  Rxe1+ {[%clk 0:00:12]} 46. Bxe1 {[%clk 0:00:04]}  f1=Q# {[%clk 0:00:12]} 0-1


[Site "https://www.chess.com"]

[Event "Titled Tuesday Blitz October 18 Late 2022"]
[White "Kowalysko, Roman"]
[Black "Vusatiuk, Vladimir"]
[WhiteFideId "30918510"]
[BlackFideId "14118610"]
[WhiteElo "2121"]
[BlackElo "2208"]
[Result "0-1"]
[Round "01"]
[TimeControl "180+1"]
[Date "2022.10.19"]
[WhiteClock "0:00:17"]
[BlackClock "0:00:43"]

1. e4 {[%clk 0:03:00]}  e5 {[%clk 0:02:59]} 2. Nc3 {[%clk 0:02:59]}  Nf6 {[%clk 0:02:58]} 3. Nf3 {[%clk 0:02:58]}  Nc6 {[%clk 0:02:58]} 4. Nxe5 {[%clk 0:02:55]}  Nxe5 {[%clk 0:02:58]} 5. d4 {[%clk 0:02:54]}  Nc6 {[%clk 0:02:51]} 6. d5 {[%clk 0:02:53]}  Ne5 {[%clk 0:02:50]} 7. f4 {[%clk 0:02:52]}  Ng6 {[%clk 0:02:50]} 8. e5 {[%clk 0:02:50]}  Bc5 {[%clk 0:02:51]} 9. exf6 {[%clk 0:02:31]}  O-O {[%clk 0:02:50]} 10. Na4 {[%clk 0:02:28]}  Re8+ {[%clk 0:02:31]} 11. Be2 {[%clk 0:02:26]}  d6 {[%clk 0:02:01]} 12. Nxc5 {[%clk 0:02:25]}  dxc5 {[%clk 0:01:51]} 13. O-O {[%clk 0:02:24]}  Qxf6 {[%clk 0:01:51]} 14. Bf3 {[%clk 0:02:02]}  Bf5 {[%clk 0:01:45]} 15. c4 {[%clk 0:01:52]}  Nh4 {[%clk 0:01:30]} 16. Qb3 {[%clk 0:01:10]}  Nxf3+ {[%clk 0:01:21]} 17. Qxf3 {[%clk 0:01:10]}  Qd4+ {[%clk 0:01:17]} 18. Qf2 {[%clk 0:01:02]}  Qxc4 {[%clk 0:01:15]} 19. Be3 {[%clk 0:01:02]}  b6 {[%clk 0:01:03]} 20. b3 {[%clk 0:01:00]}  Qxd5 {[%clk 0:01:02]} 21. Rad1 {[%clk 0:00:56]}  Qc6 {[%clk 0:01:02]} 22. Rd2 {[%clk 0:00:49]}  Qg6 {[%clk 0:00:57]} 23. Rfd1 {[%clk 0:00:47]}  h5 {[%clk 0:00:57]} 24. Qh4 {[%clk 0:00:39]}  Rxe3 {[%clk 0:00:52]} 25. Rd8+ {[%clk 0:00:34]}  Re8 {[%clk 0:00:44]} 26. Rxa8 {[%clk 0:00:33]}  Rxa8 {[%clk 0:00:45]} 27. Rd8+ {[%clk 0:00:32]}  Rxd8 {[%clk 0:00:45]} 28. Qxd8+ {[%clk 0:00:32]}  Kh7 {[%clk 0:00:45]} 29. h4 {[%clk 0:00:32]}  Be4 {[%clk 0:00:44]} 30. Qe7 {[%clk 0:00:17]}  Qxg2# {[%clk 0:00:43]} 0-1


[Site "https://www.chess.com"]

[Event "Titled Tuesday Blitz October 18 Late 2022"]
[White "Koziorowicz, Michal"]
[Black "Jean Louis, Marckens"]
[WhiteFideId "21809194"]
[BlackFideId "11900270"]
[WhiteElo "2220"]
[BlackElo "2030"]
[Result "1-0"]
[Round "01"]
[TimeControl "180+1"]
[Date "2022.10.19"]
[WhiteClock "0:00:06"]
[BlackClock "0:00:22"]

1. h4 {[%clk 0:02:58]}  d5 {[%clk 0:02:49]} 2. g3 {[%clk 0:02:57]}  e5 {[%clk 0:02:48]} 3. Bg2 {[%clk 0:02:57]}  Be6 {[%clk 0:02:47]} 4. c4 {[%clk 0:02:56]}  c6 {[%clk 0:02:47]} 5. cxd5 {[%clk 0:02:55]}  Bxd5 {[%clk 0:02:47]} 6. Nf3 {[%clk 0:02:51]}  Nf6 {[%clk 0:02:46]} 7. d3 {[%clk 0:02:48]}  e4 {[%clk 0:02:45]} 8. dxe4 {[%clk 0:02:48]}  Nxe4 {[%clk 0:02:40]} 9. O-O {[%clk 0:02:47]}  Bc5 {[%clk 0:02:38]} 10. Bf4 {[%clk 0:02:25]}  O-O {[%clk 0:02:34]} 11. Nbd2 {[%clk 0:02:23]}  Qb6 {[%clk 0:02:27]} 12. Nxe4 {[%clk 0:02:16]}  Bxe4 {[%clk 0:02:26]} 13. Qc1 {[%clk 0:01:53]}  Nd7 {[%clk 0:02:18]} 14. a3 {[%clk 0:01:45]}  a5 {[%clk 0:02:17]} 15. Qc4 {[%clk 0:01:41]}  Nf6 {[%clk 0:02:12]} 16. Be5 {[%clk 0:01:29]}  Bd5 {[%clk 0:02:11]} 17. Qf4 {[%clk 0:01:14]}  Ne4 {[%clk 0:02:11]} 18. e3 {[%clk 0:00:58]}  Rae8 {[%clk 0:02:04]} 19. Nd4 {[%clk 0:00:56]}  f6 {[%clk 0:01:57]} 20. Bc7 {[%clk 0:00:44]}  Qxb2 {[%clk 0:01:25]} 21. Nf5 {[%clk 0:00:39]}  Nc3 {[%clk 0:01:08]} 22. Qg4 {[%clk 0:00:34]}  g6 {[%clk 0:01:04]} 23. Nd4 {[%clk 0:00:24]}  Bxg2 {[%clk 0:01:02]} 24. Kxg2 {[%clk 0:00:23]}  Bxd4 {[%clk 0:01:01]} 25. Qxd4 {[%clk 0:00:23]}  Qb3 {[%clk 0:00:58]} 26. Bxa5 {[%clk 0:00:18]}  Qd5+ {[%clk 0:00:57]} 27. Qxd5+ {[%clk 0:00:19]}  Nxd5 {[%clk 0:00:57]} 28. Rab1 {[%clk 0:00:18]}  b5 {[%clk 0:00:56]} 29. Rfc1 {[%clk 0:00:19]}  Ra8 {[%clk 0:00:55]} 30. Be1 {[%clk 0:00:19]}  Rfc8 {[%clk 0:00:55]} 31. Rb3 {[%clk 0:00:19]}  Kf7 {[%clk 0:00:54]} 32. e4 {[%clk 0:00:20]}  Nb6 {[%clk 0:00:53]} 33. Bb4 {[%clk 0:00:20]}  Nc4 {[%clk 0:00:53]} 34. Rd3 {[%clk 0:00:20]}  Rd8 {[%clk 0:00:51]} 35. Rcd1 {[%clk 0:00:20]}  Rxd3 {[%clk 0:00:51]} 36. Rxd3 {[%clk 0:00:21]}  Ra7 {[%clk 0:00:51]} 37. Rd8 {[%clk 0:00:20]}  Ke6 {[%clk 0:00:51]} 38. f4 {[%clk 0:00:19]}  Rc7 {[%clk 0:00:48]} 39. Re8+ {[%clk 0:00:15]}  Kd7 {[%clk 0:00:47]} 40. Rh8 {[%clk 0:00:15]}  Ke6 {[%clk 0:00:46]} 41. h5 {[%clk 0:00:14]}  c5 {[%clk 0:00:46]} 42. Bc3 {[%clk 0:00:14]}  Rb7 {[%clk 0:00:44]} 43. hxg6 {[%clk 0:00:12]}  hxg6 {[%clk 0:00:44]} 44. Rf8 {[%clk 0:00:12]}  Nxa3 {[%clk 0:00:40]} 45. Rxf6+ {[%clk 0:00:12]}  Kd7 {[%clk 0:00:40]} 46. Rxg6 {[%clk 0:00:12]}  b4 {[%clk 0:00:40]} 47. Be5 {[%clk 0:00:11]}  Nc4 {[%clk 0:00:39]} 48. Bh8 {[%clk 0:00:11]}  b3 {[%clk 0:00:39]} 49. f5 {[%clk 0:00:07]}  Nd2 {[%clk 0:00:34]} 50. e5 {[%clk 0:00:03]}  b2 {[%clk 0:00:31]} 51. e6+ {[%clk 0:00:03]}  Kc6 {[%clk 0:00:31]} 52. e7+ {[%clk 0:00:03]}  Kd5 {[%clk 0:00:29]} 53. Bxb2 {[%clk 0:00:02]}  Rxe7 {[%clk 0:00:29]} 54. f6 {[%clk 0:00:01]}  Rf7 {[%clk 0:00:29]} 55. g4 {[%clk 0:00:02]}  Ke6 {[%clk 0:00:30]} 56. g5 {[%clk 0:00:02]}  Ne4 {[%clk 0:00:29]} 57. Rg7 {[%clk 0:00:03]}  c4 {[%clk 0:00:26]} 58. g6 {[%clk 0:00:03]}  Rf8 {[%clk 0:00:22]} 59. f7 {[%clk 0:00:03]}  Nd6 {[%clk 0:00:19]} 60. Rg8 {[%clk 0:00:03]}  Rxf7 {[%clk 0:00:19]} 61. gxf7 {[%clk 0:00:04]}  Nxf7 {[%clk 0:00:20]} 62. Rc8 {[%clk 0:00:04]}  Kd5 {[%clk 0:00:20]} 63. Kf3 {[%clk 0:00:03]}  Ng5+ {[%clk 0:00:21]} 64. Ke2 {[%clk 0:00:03]}  Ne6 {[%clk 0:00:21]} 65. Kd2 {[%clk 0:00:04]}  Nc5 {[%clk 0:00:21]} 66. Kc3 {[%clk 0:00:03]}  Na4+ {[%clk 0:00:21]} 67. Kc2 {[%clk 0:00:03]}  Nc5 {[%clk 0:00:22]} 68. Bc3 {[%clk 0:00:04]}  Ne4 {[%clk 0:00:22]} 69. Bb4 {[%clk 0:00:04]}  Kd4 {[%clk 0:00:21]} 70. Rd8+ {[%clk 0:00:04]}  Ke5 {[%clk 0:00:21]} 71. Re8+ {[%clk 0:00:05]}  Kd5 {[%clk 0:00:21]} 72. Rd8+ {[%clk 0:00:05]}  Ke5 {[%clk 0:00:21]} 73. Bc3+ {[%clk 0:00:05]}  Ke6 {[%clk 0:00:21]} 74. Rd4 {[%clk 0:00:06]}  Nd6 {[%clk 0:00:21]} 75. Bb4 {[%clk 0:00:06]}  Nf5 {[%clk 0:00:20]} 76. Rxc4 {[%clk 0:00:06]}  Kd5 {[%clk 0:00:21]} 77. Rc8 {[%clk 0:00:06]}  Ke4 {[%clk 0:00:22]} 78. Kb3 {[%clk 0:00:06]}  Nd4+ {[%clk 0:00:21]} 79. Kc4 {[%clk 0:00:06]}  Ne6 {[%clk 0:00:20]} 80. Re8 {[%clk 0:00:07]}  Kf5 {[%clk 0:00:20]} 81. Bd6 {[%clk 0:00:06]}  Ng5 {[%clk 0:00:19]} 82. Kd5 {[%clk 0:00:06]}  Nf3 {[%clk 0:00:19]} 83. Rf8+ {[%clk 0:00:06]}  Kg4 {[%clk 0:00:20]} 84. Ke4 {[%clk 0:00:05]}  Ng5+ {[%clk 0:00:20]} 85. Ke3 {[%clk 0:00:04]}  Ne6 {[%clk 0:00:20]} 86. Rf6 {[%clk 0:00:04]}  Ng5 {[%clk 0:00:20]} 87. Bf4 {[%clk 0:00:04]}  Nh3 {[%clk 0:00:19]} 88. Rg6+ {[%clk 0:00:03]}  Kf5 {[%clk 0:00:19]} 89. Rg8 {[%clk 0:00:03]}  Ke6 {[%clk 0:00:18]} 90. Kf3 {[%clk 0:00:02]}  Kd5 {[%clk 0:00:18]} 91. Rg3 {[%clk 0:00:02]}  Ng1+ {[%clk 0:00:17]} 92. Rxg1 {[%clk 0:00:02]}  Ke6 {[%clk 0:00:18]} 93. Re1+ {[%clk 0:00:03]}  Kd5 {[%clk 0:00:19]} 94. Re5+ {[%clk 0:00:03]}  Kc4 {[%clk 0:00:20]} 95. Ke4 {[%clk 0:00:03]}  Kc3 {[%clk 0:00:20]} 96. Rd5 {[%clk 0:00:04]}  Kc2 {[%clk 0:00:21]} 97. Rc5+ {[%clk 0:00:05]}  Kb3 {[%clk 0:00:21]} 98. Kd3 {[%clk 0:00:05]}  Kb4 {[%clk 0:00:22]} 99. Be3 {[%clk 0:00:05]}  Ka4 {[%clk 0:00:22]} 100. Kc3 {[%clk 0:00:05]}  Ka3 {[%clk 0:00:22]} 101. Ra5# {[%clk 0:00:06]} 1-0


[Site "https://www.chess.com"]

[Event "Titled Tuesday Blitz October 18 Late 2022"]
[White "Krishnan, Varun"]
[Black "Tsyhanchuk, Stanislav"]
[WhiteFideId "5054508"]
[BlackFideId "13505130"]
[WhiteElo "2566"]
[BlackElo "2173"]
[Result "0-1"]
[Round "01"]
[TimeControl "180+1"]
[Date "2022.10.19"]
[WhiteClock "0:00:05"]
[BlackClock "0:00:30"]

1. d4 {[%clk 0:03:00]}  Nf6 {[%clk 0:02:58]} 2. c4 {[%clk 0:03:00]}  Nc6 {[%clk 0:02:59]} 3. Nf3 {[%clk 0:02:58]}  e6 {[%clk 0:02:59]} 4. a3 {[%clk 0:02:57]}  d6 {[%clk 0:02:58]} 5. Nc3 {[%clk 0:02:56]}  g6 {[%clk 0:02:59]} 6. g3 {[%clk 0:02:54]}  Bg7 {[%clk 0:03:00]} 7. Bg2 {[%clk 0:02:54]}  O-O {[%clk 0:03:00]} 8. O-O {[%clk 0:02:54]}  a6 {[%clk 0:02:58]} 9. e3 {[%clk 0:02:47]}  Rb8 {[%clk 0:02:57]} 10. Nd2 {[%clk 0:02:46]}  Bd7 {[%clk 0:02:56]} 11. b4 {[%clk 0:02:43]}  b5 {[%clk 0:02:53]} 12. c5 {[%clk 0:02:43]}  Ne7 {[%clk 0:02:43]} 13. Bb2 {[%clk 0:02:41]}  Bc6 {[%clk 0:02:43]} 14. Nde4 {[%clk 0:02:11]}  Nxe4 {[%clk 0:02:33]} 15. Bxe4 {[%clk 0:02:10]}  Bxe4 {[%clk 0:02:31]} 16. Nxe4 {[%clk 0:02:10]}  d5 {[%clk 0:02:29]} 17. Nc3 {[%clk 0:02:08]}  c6 {[%clk 0:02:27]} 18. a4 {[%clk 0:02:03]}  a5 {[%clk 0:02:02]} 19. bxa5 {[%clk 0:01:55]}  b4 {[%clk 0:02:03]} 20. Nb1 {[%clk 0:01:52]}  Qxa5 {[%clk 0:02:03]} 21. Nd2 {[%clk 0:01:52]}  Qa6 {[%clk 0:01:46]} 22. Nb3 {[%clk 0:01:35]}  f6 {[%clk 0:01:41]} 23. Re1 {[%clk 0:01:30]}  e5 {[%clk 0:01:40]} 24. Qe2 {[%clk 0:01:28]}  Qa7 {[%clk 0:01:36]} 25. a5 {[%clk 0:01:27]}  e4 {[%clk 0:01:28]} 26. a6 {[%clk 0:01:23]}  f5 {[%clk 0:01:27]} 27. h4 {[%clk 0:01:18]}  h6 {[%clk 0:01:24]} 28. Kg2 {[%clk 0:01:13]}  Bf6 {[%clk 0:01:24]} 29. Rh1 {[%clk 0:01:11]}  Kg7 {[%clk 0:01:24]} 30. f4 {[%clk 0:01:01]}  exf3+ {[%clk 0:01:21]} 31. Qxf3 {[%clk 0:00:59]}  h5 {[%clk 0:01:22]} 32. Nc1 {[%clk 0:00:57]}  Rfe8 {[%clk 0:01:19]} 33. Nd3 {[%clk 0:00:54]}  Ng8 {[%clk 0:01:15]} 34. Ne5 {[%clk 0:00:43]}  Re6 {[%clk 0:01:15]} 35. Qf4 {[%clk 0:00:37]}  Nh6 {[%clk 0:01:09]} 36. Nd7 {[%clk 0:00:33]}  Rbe8 {[%clk 0:01:01]} 37. Nxf6 {[%clk 0:00:28]}  Rxf6 {[%clk 0:01:01]} 38. Ra4 {[%clk 0:00:21]}  Ng4 {[%clk 0:00:50]} 39. Re1 {[%clk 0:00:21]}  Rfe6 {[%clk 0:00:49]} 40. Rxb4 {[%clk 0:00:17]}  Qxa6 {[%clk 0:00:48]} 41. Rb6 {[%clk 0:00:17]}  Qd3 {[%clk 0:00:47]} 42. Rb7+ {[%clk 0:00:17]}  R8e7 {[%clk 0:00:47]} 43. Rxe7+ {[%clk 0:00:16]}  Rxe7 {[%clk 0:00:48]} 44. Bc1 {[%clk 0:00:15]}  Qc2+ {[%clk 0:00:45]} 45. Kf1 {[%clk 0:00:15]}  Qh2 {[%clk 0:00:43]} 46. Qf3 {[%clk 0:00:13]}  Qc2 {[%clk 0:00:31]} 47. Qf4 {[%clk 0:00:12]}  Ra7 {[%clk 0:00:30]} 48. Qf3 {[%clk 0:00:06]}  Nh2+ {[%clk 0:00:29]} 49. Kg1 {[%clk 0:00:05]}  Nxf3+ {[%clk 0:00:30]} 0-1


[Site "https://www.chess.com"]

[Event "Titled Tuesday Blitz October 18 Late 2022"]
[White "Luxama, Jacques Muller"]
[Black "Suder, Jakub"]
[WhiteFideId "11900113"]
[BlackFideId "1195310"]
[WhiteElo "1931"]
[BlackElo "2174"]
[Result "1-0"]
[Round "01"]
[TimeControl "180+1"]
[Date "2022.10.19"]
[WhiteClock "0:00:56"]
[BlackClock "0:01:03"]

1. e4 {[%clk 0:03:00]}  c5 {[%clk 0:02:59]} 2. Nf3 {[%clk 0:03:00]}  Nc6 {[%clk 0:02:59]} 3. d4 {[%clk 0:03:00]}  cxd4 {[%clk 0:03:00]} 4. Nxd4 {[%clk 0:03:00]}  Nf6 {[%clk 0:03:00]} 5. Nc3 {[%clk 0:03:00]}  e5 {[%clk 0:03:00]} 6. Ndb5 {[%clk 0:02:57]}  d6 {[%clk 0:03:00]} 7. Nd5 {[%clk 0:02:57]}  Nxd5 {[%clk 0:02:59]} 8. exd5 {[%clk 0:02:58]}  Nb8 {[%clk 0:02:58]} 9. a4 {[%clk 0:02:58]}  Be7 {[%clk 0:02:57]} 10. Be2 {[%clk 0:02:57]}  O-O {[%clk 0:02:57]} 11. O-O {[%clk 0:02:57]}  f5 {[%clk 0:02:58]} 12. f4 {[%clk 0:02:57]}  a6 {[%clk 0:02:58]} 13. Na3 {[%clk 0:02:56]}  Nd7 {[%clk 0:02:56]} 14. Nc4 {[%clk 0:02:42]}  b6 {[%clk 0:02:56]} 15. b4 {[%clk 0:02:36]}  Qc7 {[%clk 0:02:54]} 16. Be3 {[%clk 0:02:13]}  Bb7 {[%clk 0:02:48]} 17. Qd2 {[%clk 0:01:55]}  Bf6 {[%clk 0:02:42]} 18. Ra3 {[%clk 0:01:42]}  b5 {[%clk 0:02:31]} 19. axb5 {[%clk 0:01:40]}  axb5 {[%clk 0:02:32]} 20. Rxa8 {[%clk 0:01:40]}  Bxa8 {[%clk 0:02:28]} 21. Na5 {[%clk 0:01:37]}  Nb6 {[%clk 0:02:26]} 22. Bxb6 {[%clk 0:01:23]}  Qxb6+ {[%clk 0:02:25]} 23. Kh1 {[%clk 0:01:23]}  Rc8 {[%clk 0:02:14]} 24. c4 {[%clk 0:01:19]}  bxc4 {[%clk 0:02:12]} 25. Nxc4 {[%clk 0:01:19]}  Qd8 {[%clk 0:01:54]} 26. fxe5 {[%clk 0:01:15]}  dxe5 {[%clk 0:01:54]} 27. d6 {[%clk 0:01:13]}  Be4 {[%clk 0:01:45]} 28. Rd1 {[%clk 0:01:06]}  Rb8 {[%clk 0:01:24]} 29. d7 {[%clk 0:01:03]}  h6 {[%clk 0:01:21]} 30. Nd6 {[%clk 0:01:00]}  Bg5 {[%clk 0:01:03]} 31. Qa2+ {[%clk 0:00:57]}  Kh8 {[%clk 0:01:03]} 32. Nf7+ {[%clk 0:00:56]} 1-0


[Site "https://www.chess.com"]

[Event "Titled Tuesday Blitz October 18 Late 2022"]
[White "Maksimovic, Bojan"]
[Black "Pavlidou, Ekaterini"]
[WhiteFideId "14408120"]
[BlackFideId "4213262"]
[WhiteElo "2447"]
[BlackElo "2125"]
[Result "1-0"]
[Round "01"]
[TimeControl "180+1"]
[Date "2022.10.18"]
[WhiteClock "0:00:08"]
[BlackClock "0:00:28"]

1. e4 {[%clk 0:03:00]}  c5 {[%clk 0:03:00]} 2. Nf3 {[%clk 0:03:00]}  Nc6 {[%clk 0:03:00]} 3. d4 {[%clk 0:03:01]}  cxd4 {[%clk 0:03:00]} 4. Nxd4 {[%clk 0:03:02]}  e5 {[%clk 0:03:00]} 5. Nb5 {[%clk 0:03:02]}  d6 {[%clk 0:03:00]} 6. N1c3 {[%clk 0:03:01]}  a6 {[%clk 0:02:59]} 7. Na3 {[%clk 0:03:02]}  Be6 {[%clk 0:02:59]} 8. Nc4 {[%clk 0:03:01]}  g6 {[%clk 0:02:58]} 9. Ne3 {[%clk 0:02:58]}  Bg7 {[%clk 0:02:58]} 10. Bd3 {[%clk 0:02:58]}  Nd4 {[%clk 0:02:57]} 11. O-O {[%clk 0:02:56]}  Ne7 {[%clk 0:02:56]} 12. Ncd5 {[%clk 0:02:56]}  Nxd5 {[%clk 0:02:55]} 13. Nxd5 {[%clk 0:02:56]}  Bxd5 {[%clk 0:02:54]} 14. exd5 {[%clk 0:02:56]}  Qd7 {[%clk 0:02:53]} 15. c3 {[%clk 0:02:51]}  Nf5 {[%clk 0:02:53]} 16. f4 {[%clk 0:02:51]}  Ne7 {[%clk 0:02:45]} 17. Qf3 {[%clk 0:02:50]}  f5 {[%clk 0:02:44]} 18. fxe5 {[%clk 0:02:48]}  dxe5 {[%clk 0:02:44]} 19. d6 {[%clk 0:02:45]}  Qxd6 {[%clk 0:02:37]} 20. Qxb7 {[%clk 0:02:38]}  Rd8 {[%clk 0:02:35]} 21. Be2 {[%clk 0:02:11]}  O-O {[%clk 0:02:33]} 22. Be3 {[%clk 0:01:58]}  f4 {[%clk 0:02:10]} 23. Bf2 {[%clk 0:01:58]}  e4 {[%clk 0:02:09]} 24. Qxe4 {[%clk 0:01:54]}  Nf5 {[%clk 0:02:06]} 25. Rfd1 {[%clk 0:01:52]}  Qb8 {[%clk 0:02:00]} 26. Qe6+ {[%clk 0:01:22]}  Kh8 {[%clk 0:01:59]} 27. Qb3 {[%clk 0:01:23]}  Qe5 {[%clk 0:01:55]} 28. Bf3 {[%clk 0:01:15]}  Ne3 {[%clk 0:01:52]} 29. Rxd8 {[%clk 0:01:14]}  Rxd8 {[%clk 0:01:52]} 30. Re1 {[%clk 0:01:09]}  h5 {[%clk 0:01:47]} 31. Qb6 {[%clk 0:01:04]}  Rd6 {[%clk 0:01:41]} 32. Qb8+ {[%clk 0:01:03]}  Kh7 {[%clk 0:01:41]} 33. c4 {[%clk 0:01:04]}  Rd2 {[%clk 0:01:31]} 34. Qxe5 {[%clk 0:00:52]}  Bxe5 {[%clk 0:01:30]} 35. g3 {[%clk 0:00:52]}  g5 {[%clk 0:01:17]} 36. gxf4 {[%clk 0:00:51]}  gxf4 {[%clk 0:01:17]} 37. c5 {[%clk 0:00:47]}  Rxb2 {[%clk 0:01:14]} 38. c6 {[%clk 0:00:46]}  Bc7 {[%clk 0:01:06]} 39. a4 {[%clk 0:00:12]}  Kh6 {[%clk 0:01:05]} 40. h4 {[%clk 0:00:10]}  a5 {[%clk 0:01:03]} 41. Re2 {[%clk 0:00:08]}  Rxe2 {[%clk 0:00:58]} 42. Bxe2 {[%clk 0:00:09]}  Nf5 {[%clk 0:00:56]} 43. Bd3 {[%clk 0:00:07]}  Nd6 {[%clk 0:00:54]} 44. Kg2 {[%clk 0:00:06]}  Kg7 {[%clk 0:00:52]} 45. Kf3 {[%clk 0:00:05]}  Nf7 {[%clk 0:00:52]} 46. Bd4+ {[%clk 0:00:05]}  Kf8 {[%clk 0:00:52]} 47. Ke4 {[%clk 0:00:04]}  Ke7 {[%clk 0:00:51]} 48. Kd5 {[%clk 0:00:05]}  Nd6 {[%clk 0:00:43]} 49. Bc5 {[%clk 0:00:05]}  f3 {[%clk 0:00:43]} 50. Bf1 {[%clk 0:00:05]}  f2 {[%clk 0:00:40]} 51. Be2 {[%clk 0:00:05]}  Kd8 {[%clk 0:00:29]} 52. Bxd6 {[%clk 0:00:05]}  Bxd6 {[%clk 0:00:29]} 53. Kxd6 {[%clk 0:00:06]}  Kc8 {[%clk 0:00:30]} 54. Ba6+ {[%clk 0:00:06]}  Kb8 {[%clk 0:00:28]} 55. c7+ {[%clk 0:00:07]}  Ka7 {[%clk 0:00:28]} 56. c8=Q {[%clk 0:00:07]}  Kb6 {[%clk 0:00:28]} 57. Qb7# {[%clk 0:00:08]} 1-0


[Site "https://www.chess.com"]

[Event "Titled Tuesday Blitz October 18 Late 2022"]
[White "Malka, Samuel"]
[Black "Yeletsky, Ivan"]
[WhiteFideId "20643675"]
[BlackFideId "24180327"]
[WhiteElo "2471"]
[BlackElo "2391"]
[Result "0-1"]
[Round "01"]
[TimeControl "180+1"]
[Date "2022.10.18"]
[WhiteClock "0:00:24"]
[BlackClock "0:00:49"]

1. d4 {[%clk 0:02:59]}  Nf6 {[%clk 0:02:19]} 2. c4 {[%clk 0:02:56]}  g6 {[%clk 0:02:18]} 3. Nc3 {[%clk 0:02:55]}  Bg7 {[%clk 0:02:17]} 4. e4 {[%clk 0:02:54]}  d6 {[%clk 0:02:18]} 5. Nf3 {[%clk 0:02:54]}  O-O {[%clk 0:02:17]} 6. Be2 {[%clk 0:02:54]}  e5 {[%clk 0:02:17]} 7. O-O {[%clk 0:02:54]}  exd4 {[%clk 0:02:17]} 8. Nxd4 {[%clk 0:02:54]}  Re8 {[%clk 0:02:18]} 9. f3 {[%clk 0:02:53]}  Nc6 {[%clk 0:02:18]} 10. Bg5 {[%clk 0:02:53]}  h6 {[%clk 0:01:54]} 11. Bh4 {[%clk 0:02:51]}  Nxd4 {[%clk 0:01:48]} 12. Qxd4 {[%clk 0:02:43]}  g5 {[%clk 0:01:48]} 13. e5 {[%clk 0:01:48]}  Nh5 {[%clk 0:01:41]} 14. Bf2 {[%clk 0:01:42]}  Nf4 {[%clk 0:01:41]} 15. Rfe1 {[%clk 0:01:30]}  Bxe5 {[%clk 0:01:41]} 16. Qd2 {[%clk 0:01:30]}  Bf5 {[%clk 0:01:32]} 17. Rad1 {[%clk 0:01:23]}  Qf6 {[%clk 0:01:27]} 18. Nb5 {[%clk 0:01:20]}  Re7 {[%clk 0:01:24]} 19. Nd4 {[%clk 0:01:20]}  Bg6 {[%clk 0:01:21]} 20. Bf1 {[%clk 0:01:18]}  Rae8 {[%clk 0:01:20]} 21. g3 {[%clk 0:01:13]}  Ne6 {[%clk 0:01:04]} 22. Kg2 {[%clk 0:00:49]}  Bxd4 {[%clk 0:00:55]} 23. Bxd4 {[%clk 0:00:50]}  Nxd4 {[%clk 0:00:55]} 24. Rxe7 {[%clk 0:00:44]}  Qxf3+ {[%clk 0:00:55]} 25. Kg1 {[%clk 0:00:45]}  Rxe7 {[%clk 0:00:56]} 26. Qxd4 {[%clk 0:00:43]}  b6 {[%clk 0:00:53]} 27. Bg2 {[%clk 0:00:42]}  Qe2 {[%clk 0:00:51]} 28. Bd5 {[%clk 0:00:30]}  Be4 {[%clk 0:00:49]} 29. Rd2 {[%clk 0:00:24]}  Qe1# {[%clk 0:00:49]} 0-1


[Site "https://www.chess.com"]